Cogmind - Beta 10.1 @@@ ROGUE MODE // 2020.09.22 @ 11:22:58 Player: spruce (@macklemurr) Result: Self-destructed Performance ------------- Evolutions (1) 500 Regions Visited (4) 800 Robots Destroyed (28) 140 Value Destroyed (683) 683 Prototype IDs (1) 20 Alien Tech Used (0) 0 Bonus (-3) -3 TOTAL SCORE: 2140 Bonus ------- Follower Combat Kills 14 Friendly Fire -17 Cogmind --------- Core Integrity 62/400 Matter 263/300 Energy 100/100 System Corruption 5% Temperature Cool (20) Movement Walking (150) Ox1 Location -9/Exiles Parts ------- > --- POWER (1) -------- (None) > --- PROPULSION (2) --- Aluminum Leg > --- UTILITY (4) ------ Heat Sink Improved Heat Sink Large Storage Unit Targeting Computer > --- WEAPON (2) ------- (None) > --- INVENTORY (10) --- Ion Engine Improved Heat Sink Improved Sensor Array Signal Interpreter Improved Terrain Scanner Improved Terrain Scanner Hacking Suite Peak State ------------ > --- POWER ------------ Ion Engine > --- PROPULSION ------- Aluminum Leg Carbon-fiber Leg > --- UTILITY ---------- Improved Heat Sink Large Storage Unit Targeting Computer Targeting Computer > --- WEAPON ----------- Beam Rifle Improved Medium Laser > --- INVENTORY -------- Light Ion Engine Aluminum Leg Heat Sink Improved Sensor Array Signal Interpreter Improved Terrain Scanner Improved Terrain Scanner Hacking Suite Medium Laser Rocket Launcher [Rating: 17] Favorites ----------- Power Light Ion Engine Engine Light Ion Engine Propulsion Aluminum Leg Leg Aluminum Leg Wheel Compact Wheel Utility Targeting Computer Device Heat Sink Storage Large Storage Unit Processor Targeting Computer Protection Medium Armor Plating Weapon Improved Medium Laser Energy Gun Improved Medium Laser Ballistic Gun Assault Rifle Launcher Rocket Launcher Build | -11 -10 -9 -9 -9 ------- Run | Scr Mat Mat Min Exi Slots Evolved 2 | . . 2 . . Power . | . . . . . Propulsion . | . . . . . Utility 2 | . . 2 . . Weapon . | . . . . . Parts Attached 46 | 6 11 19 10 . Power 8 | 1 2 2 3 . Engine 8 | 1 2 2 3 . Core . | . . . . . Reactor . | . . . . . Propulsion 11 | 2 3 3 3 . Treads . | . . . . . Leg 6 | . . 3 3 . Wheel 5 | 2 3 . . . Hover . | . . . . . Flight . | . . . . . Utility 10 | 1 1 6 2 . Device 3 | . . 1 2 . Storage 2 | 1 . 1 . . Processor 2 | . 1 1 . . Hackware . | . . . . . Protection 3 | . . 3 . . Artifact . | . . . . . Weapon 17 | 2 5 8 2 . Energy Gun 14 | 1 5 7 1 . Energy Cannon . | . . . . . Ballistic Gun 2 | 1 . 1 . . Ballistic Cannon . | . . . . . Launcher 1 | . . . 1 . Special Weapon . | . . . . . Impact Weapon . | . . . . . Slashing Weapon . | . . . . . Piercing Weapon . | . . . . . Special Melee Weapon . | . . . . . Unidentified Prototypes 1 | . . 1 . . Parts Lost 19 | . 1 8 7 3 Power 3 | . . 1 1 1 Propulsion 5 | . . 2 2 1 Utility 4 | . . 3 1 . Weapon 7 | . 1 2 3 1 Highest Loss Streak 8 | . 1 8 6 3 Average Slot Usage (%) 90 | . 92 89 90 88 Engine 10 | . 13 9 10 11 Leg 12 | . . 8 17 22 Wheel 8 | . 28 11 . . Device 10 | . . 3 13 22 Storage 11 | . 14 11 11 11 Processor 14 | . 8 14 19 11 Protection 2 | . . 11 . . Energy Gun 14 | . 21 18 16 . Ballistic Gun 1 | . 5 2 . . Launcher 3 | . . . 2 11 Naked Turns . | . . . . . Heaviest Build 39 | 11 11 39 28 25 Greatest Support 32 | 26 32 32 25 20 Greatest Overweight (x) 8 | 1 . 2 8 1 Average Overweight (x) . | . . . 1 1 Largest Inventory Capacity 10 | 6 6 10 10 10 Average Capacity 8 | 4 6 9 10 10 Most Carried 10 | 4 6 8 10 7 Average Carried 6 | 1 5 6 7 7 Final Capacity 10 | 6 6 10 10 10 Final Carried 7 | 4 6 5 7 7 Class Distribution -------------------- 72% | Mutant 27% | Scavenger-Mutant Dominant Class ---------------- Mutant | -10/Materials Mutant | -9/Materials Mutant | -9/Mines Scavenger-Mutant | -9/Exiles Resources | -11 -10 -9 -9 -9 ----------- Run | Scr Mat Mat Min Exi Matter Collected 785 | 212 158 220 181 14 Remotely . | . . . . . Salvage Created 746 | . 215 371 146 14 Parts 46 | . 15 25 5 1 Haulers Intercepted . | . . . . . Recyclers Shooed 1 | . 1 . . . Parts Field Recycled . | . . . . . Retrieved Matter . | . . . . . Parts Self-Destructed . | . . . . . Prevented . | . . . . . Kills | -11 -10 -9 -9 -9 ------- Run | Scr Mat Mat Min Exi Combat Hostiles Destroyed 25 | . 6 13 6 . Guns 24 | . 6 13 5 . AOE 1 | . . . 1 . Classes Destroyed 7 | . 3 2 1 1 Builder 1 | . 1 . . . Operator 1 | . . 1 . . Swarmer 11 | . 3 7 1 . Grunt 11 | . 3 5 3 . Brawler 1 | . . 1 . . Demolisher 2 | . . . 2 . Zionite 1 | . . . . 1 Best Kill Streak 5 | . 3 5 3 1 Combat Bots Only 5 | . 2 5 3 . Max Kills in Single Turn 2 | . 1 2 2 1 Gunslinging 1 | . . 1 1 . Exploded 1 | . . . 1 . Melee . | . . . . . Uniques/NPCs Destroyed . | . . . . . Combat | -11 -10 -9 -9 -9 -------- Run | Scr Mat Mat Min Exi Damage Taken 1840 | . 262 936 529 113 Core 463 | . 125 191 137 10 Absorbed by Shields . | . . . . . Core Remaining (%) 75 | 100 50 . . . Volleys Fired 88 | . 20 51 16 1 Largest 2 | . 2 2 2 1 Hottest 112 | . 80 112 112 33 Shots Fired 125 | . 32 66 25 2 Gun 121 | . 32 66 23 . Cannon . | . . . . . Launcher 4 | . . . 2 2 Special . | . . . . . Kinetic 48 | . 17 31 . . Thermal 59 | . 1 35 23 . Explosive 4 | . . . 2 2 Electromagnetic 14 | . 14 . . . Robot Hit Streak 7 | . 5 7 7 5 Robot Miss Streak 4 | . 3 4 2 1 Penetration Max . | . . . . . Secondary Targets 3 | . . 2 1 . Max Gunslinging Chain 1 | . . 1 1 . Shots Hit Robots 83 | . 17 47 18 1 Core Hits 42 | . 10 20 9 3 Critical Hits . | . . . . . Critical Kills . | . . . . . Critical Parts Destroyed . | . . . . . Melee Attacks . | . . . . . Impact . | . . . . . Slashing . | . . . . . Piercing . | . . . . . Sneak Attacks . | . . . . . Combat Hostiles . | . . . . . Follow-up Attacks . | . . . . . Damage Inflicted 1327 | . 269 671 351 36 Guns 1131 | . 194 671 266 . Cannons . | . . . . . Explosions 195 | . 74 . 85 36 Melee . | . . . . . Ramming 1 | . 1 . . . Kinetic 378 | . 80 298 . . Thermal 724 | . 85 373 266 . Explosive 121 | . . . 85 36 Electromagnetic 103 | . 103 . . . Impact . | . . . . . Slashing . | . . . . . Piercing . | . . . . . Highest Corruption 5 | . . 5 5 5 Average Corruption 4 | . . 4 5 5 Corruption Purged . | . . . . . Effects 30 | . . 7 16 7 Message Errors 4 | . . . 3 1 Matter Fused 7 | . . 2 2 3 Heat Flow Errors 3 | . . . 2 1 Energy Discharges 1 | . . . 1 . Parts Rejected 2 | . . 1 1 . Data Loss (minor) 5 | . . 1 4 . Data Loss (major) 1 | . . . . 1 Misfires 3 | . . . 2 1 Targeting Errors 4 | . . 3 1 . Overload Shots . | . . . . . Overflow Damage 29 | . 7 . . 22 Projectiles . | . . . . . Explosions 29 | . 7 . . 22 Melee . | . . . . . Knockbacks . | . . . . . Impact . | . . . . . Kinetic . | . . . . . Secondary . | . . . . . Self-Inflicted Damage 162 | . 38 . 36 88 Shots 5 | . 1 . 2 2 Rammed 1 | . 1 . . . Targets Rammed 1 | . 1 . . . Kicked . | . . . . . Crushed . | . . . . . Highest Temperature 366 | . 39 366 295 200 Average Temperature 121 | . 21 149 102 110 Received Heat Transfer 575 | . 66 348 141 20 Effects 1 | . . . 1 . Energy Bleed 1 | . . . 1 . Siege Activations . | . . . . . Robots Corrupted . | . . . . . Combat Hostiles . | . . . . . Parts Fried . | . . . . . Impact Corruptions . | . . . . . Robots Melted . | . . . . . Combat Hostiles . | . . . . . Parts Melted 2 | . . 2 . . Heat Transferred 1679 | . 125 888 666 . Parts Sabotaged . | . . . . . Parts Stolen . | . . . . . Parts Stripped . | . . . . . Power Chain Reactions 1 | . 1 . . . Missiles Intercepted . | . . . . . Alert | -11 -10 -9 -9 -9 ------- Run | Scr Mat Mat Min Exi Peak Influence 399 | . 220 399 216 . Initial 155 | . . 92 155 . Average 145 | . 123 221 127 . Maximum Alert Level 1 | . 1 1 1 . Low Security (%) 74 | 100 95 39 82 . Level 1 25 | . 4 60 17 . Level 2 . | . . . . . Level 3 . | . . . . . Level 4 . | . . . . . Level 5 . | . . . . . High Security . | . . . . . Max Security . | . . . . . Squads Dispatched 5 | . 2 3 . . Investigation 4 | . 2 2 . . Extermination . | . . . . . Reinforcement 1 | . . 1 . . Assault . | . . . . . Garrison . | . . . . . Intercept . | . . . . . Construction Impeded . | . . . . . Haulers Reinforced . | . . . . . Stealth | -11 -10 -9 -9 -9 --------- Run | Scr Mat Mat Min Exi Distress Signals . | . . . . . Communications Jammed . | . . . . . Distress Signals . | . . . . . Times Spotted 44 | . 11 16 8 9 Peak Tracking Total 14 | . 6 6 3 14 Tactical Retreats 2 | . 2 . . . Traps | -11 -10 -9 -9 -9 ------- Run | Scr Mat Mat Min Exi Traps Triggered 2 | . 1 1 . . Indirectly . | . . . . . Trap Hack Attempts . | . . . . . Triggered . | . . . . . Disarmed . | . . . . . Reprogrammed . | . . . . . Reused . | . . . . . Traps Extracted . | . . . . . Installed . | . . . . . Triggered 1 | . 1 . . . Machines | -11 -10 -9 -9 -9 ---------- Run | Scr Mat Mat Min Exi Machines Disabled 3 | . . . . 3 Max in Single Turn 2 | . . . . 2 Machines Sabotaged . | . . . . . Garrisons Compromised . | . . . . . Overloaded Fab Kills . | . . . . . Fab Network Shutdowns . | . . . . . Hacking | -11 -10 -9 -9 -9 --------- Run | Scr Mat Mat Min Exi Machines Accessed 8 | . 4 4 . . Terminals 4 | . 2 2 . . Fabricators . | . . . . . Repair Stations . | . . . . . Recycling Units 3 | . 2 1 . . Scanalyzers 1 | . . 1 . . Garrison Access . | . . . . . Total Hacks 12 | . 6 6 . . Successful 8 | . 4 4 . . Failed 4 | . 2 2 . . Catastrophic . | . . . . . Database Lockouts . | . . . . . Manual 10 | . 5 5 . . Terminals 7 | . 4 3 . . Fabricators . | . . . . . Repair Stations . | . . . . . Recycling Units 3 | . 2 1 . . Scanalyzers 2 | . . 2 . . Garrison Access . | . . . . . Terminal Hacks 3 | . 1 2 . . Branch Access Points 1 | . . 1 . . Zone Layout 2 | . 1 1 . . Fabricator Hacks . | . . . . . Repair Station Hacks . | . . . . . Recycling Unit Hacks . | . . . . . Scanalyzer . | . . . . . Garrison Access Hacks . | . . . . . Unauthorized Hacks 5 | . 3 2 . . Terminals 1 | . 1 . . . Botnet 1 | . 1 . . . Fabricators . | . . . . . Repair Stations . | . . . . . Recycling Units 3 | . 2 1 . . Tunnel 3 | . 2 1 . . Scanalyzers 1 | . . 1 . . Extract 1 | . . 1 . . Garrison Access . | . . . . . Data Cores Recovered . | . . . . . Used . | . . . . . Hacking Detections 3 | . 2 1 . . Full Trace Events . | . . . . . Feedback Events . | . . . . . Feedback Blocked . | . . . . . Robot Schematics Acquired . | . . . . . Robots Built . | . . . . . Matter . | . . . . . Time . | . . . . . Total Robot Build Rating . | . . . . . Part Schematics Acquired 1 | . . 1 . . Parts Built . | . . . . . Matter . | . . . . . Time . | . . . . . Total Part Build Rating . | . . . . . Parts Repaired . | . . . . . Time . | . . . . . Parts Recycled . | . . . . . Recycled Matter . | . . . . . Retrieved Matter . | . . . . . Retrieved Components . | . . . . . Parts Scanalyzed . | . . . . . Part Schematics Acquired . | . . . . . Parts Damaged . | . . . . . Bothacking | -11 -10 -9 -9 -9 ------------ Run | Scr Mat Mat Min Exi Used RIF Installer . | . . . . . Robots Hacked . | . . . . . Non-combat . | . . . . . Combat . | . . . . . Robot Hacks Applied . | . . . . . Relay Couplers Released . | . . . . . Robots Rewired . | . . . . . Allies Hacked . | . . . . . Hacks Repelled . | . . . . . Allies | -11 -10 -9 -9 -9 -------- Run | Scr Mat Mat Min Exi Total Allies 4 | . . . 4 . Largest Group 4 | . . . 4 . Highest-Rated Group 71 | . . . 71 . Highest-Rated Ally 31 | . . . 31 . Total Orders . | . . . . . Ally Attacks 9 | . . . 9 . Total Damage 108 | . . . 108 . Kills 2 | . . . 2 . Allies Corrupted . | . . . . . Allies Melted . | . . . . . Intel | -11 -10 -9 -9 -9 ------- Run | Scr Mat Mat Min Exi Robot Analysis Total . | . . . . . Derelict Logs Recovered 1 | . . . 1 . Drone Launches . | . . . . . Drone Recoveries . | . . . . . Exploration | -11 -10 -9 -9 -9 ------------- Run | Scr Mat Mat Min Exi Turns Passed 1586 | 68 299 361 590 268 Spaces Moved 939 | 72 215 164 311 177 Core 33 | 30 . . 3 . Treads . | . . . . . Legs 554 | . . 69 308 177 Wheels 352 | 42 215 95 . . Hover . | . . . . . Flight . | . . . . . Fastest Speed 50 | 50 80 100 150 150 Average Speed 129 | 77 93 125 156 150 Slowest Speed 450 | 100 100 180 450 150 Overloaded Moves . | . . . . . Propulsion Burnouts . | . . . . . Robots Hopped . | . . . . . Cave-ins Triggered . | . . . . . Exploration Rate (%) 34 | 4 41 18 52 55 Regions Visited 4 Branch Regions 2 Pre-discovered Areas 3 | . 2 1 . . Known Exits Taken 1 | . . 1 . . Unknown Exits Taken 3 | 1 1 . 1 . Scrap Searched 1 | . . . 1 . Spaces Dug . | . . . . . Terrain Destroyed 24 | . 6 . 9 9 Melee . | . . . . . Projectile . | . . . . . AOE 24 | . 6 . 9 9 Terrain Rammed . | . . . . . Walls Destroyed . | . . . . . Machines Disabled . | . . . . . Actions | -11 -10 -9 -9 -9 --------- Run | Scr Mat Mat Min Exi Total 1177 | 81 279 250 389 178 Wait 79 | . 25 6 48 . Move 935 | 71 214 163 310 177 Hop . | . . . . . Pick Up 16 | 4 2 6 4 . Fast Attach 26 | 6 8 9 3 . Attach 11 | . 1 6 4 . Detach 2 | . 2 . . . Swap 9 | . 2 4 3 . Drop 10 | . 4 5 1 . Fire 88 | . 20 51 16 1 Melee . | . . . . . Ram 1 | . 1 . . . Kick . | . . . . . Crush . | . . . . . Escape Stasis . | . . . . . Rewire . | . . . . . Trap . | . . . . . Miscellaneous . | . . . . . Route ------- -11/Scrapyard -10/Materials -9/Materials (discovered 2 exits: *Min x2) -9/Mines -9/Exiles History --------- Turn | Location | Event 3 | -11/Scrapyard | Discovered new exit (range 16) 69 | -11/Scrapyard | Entered Materials 312 | -10/Materials | Build established: Mutant 339 | -10/Materials | Discovered new exit (range 15) 368 | -10/Materials | Entered another Materials area 368 | -9/Materials | Evolved 2 slots: Utility x2 620 | -9/Materials | Lost 8 parts (1p2n3u2w) 700 | -9/Materials | Discovered new exit (range 10) 702 | -9/Materials | Identified exit to Mines 729 | -9/Materials | Entered Mines 730 | -9/Mines | Assembled infested the area 732 | -9/Mines | Assisted by bots powering up and referring to "LRC-V3" 820 | -9/Mines | Received a Rocket Launcher from a helpful Derelict 906 | -9/Mines | Deemed a non-threat by the Exiles lab entrance 907 | -9/Mines | Discovered new exit (range 5) 945 | -9/Mines | Received a Mining Laser from a helpful Derelict 1071 | -9/Mines | Core integrity fell below 50% 1168 | -9/Mines | Core integrity fell below 20% 1193 | -9/Mines | Lost 6 parts (1p1n1u3w) 1319 | -9/Mines | Entered Exiles 1354 | -9/Exiles | Met 8R-AWN 1378 | -9/Exiles | Met EX-HEX 1448 | -9/Exiles | Build established: Scavenger-Mutant 1456 | -9/Exiles | Met EX-DEC 1487 | -9/Exiles | Visited The Gauntlet 1570 | -9/Exiles | Attacked by the Exiles 1587 | -9/Exiles | Self-destructed Last Messages --------------- your atomic chain! 01458_ EX-DEC: "Oops, I hope HEX didn't hear that..." 01459_ System corrupted: Substantial component data lost. 01477_ W0EET%VUGRGH&LMGS|JSGIVDUSQ ,Y6# K 01510_ System corrupted: Heat flow error (+235). 01540_ System corrupted: Matter fused (-9). 01570_ System corrupted: FCS attempts to trigger Rocket Launcher. 01570_ System corrupted: Rocket Launcher misfires. 01570_ EXILES: Hostile robot within lab perimeter. Defensive protocols time, folks! 01570_ W1-DM0 destroyed. 01570_ Machine disabled. 01570_ Testing Chamber Shield damaged. 01571_ Acquired 14 matter. 01585_ Machine disabled. 01585_ Lgt. Ion Engine destroyed. 01585_ Destroyed Lgt. Ion Engine. 01585_ Aluminum Leg destroyed. 01585_ Destroyed Aluminum Leg. 01585_ Rocket Launcher destroyed. Map ----- +----------------------------------------------------+ | ????????????????# | | ????????????????#" " "" | | ?????????????????"""" ""## ##""" " | | ????????????????#"" ""#### ######"" | | ????????????????#" """"##??# #????### | | ????????????????#""" """#??## ####???# | | ?????????????????# ""##??#! "!#???? | | ?????????????????#"" """##???#" !#???? | | ?????????????????##""" ##????#" "#???? | | ??????????????????##"""" ##?????#!!""!"#???? | | ???????????????????### #??????########???? | | ?????????????????????##### ##?????????????????? | | ?????????????????????????## #??????????????????? | | ??????????????????????????# #??????????????????? | | ??????????????????????????# #??????????????????? | | ??????????????????????????# a#??????????????????? | | ???????????????#######????# z#??????????????????? | | ???????"""""???#"""""""#??# #??????????????????? | | ?????"""""""???#"""""""#??# z#??????????????????? | | ????"""""" "#??#" """"#??# #??????????????????? | | ?#""#""" """???#"" """#??# aa#??????????????????? | | ?#""#"" ""?###"" ""####a #??????????????????? | | ##""###"""#### # a ########???????????? | | """"""" """"" " """""""#???????????? | | """""" """"" * "#"" "???????? | | z @ " "???????? | | " " "??????? | | " ""???????? | | "" "" #"" "???????? | | """"" " """"" " """" """""#???????????? | | #######"""###""###"""########"""######???????????? | | ?????"" ""#""#"" ""?????" ""???????????????? | | ?????""" ""#""#""" ""?????" """#??????????????? | | ????#" """"""""#" " "#????""""""#??????????????? | | ?????"""""""????"""""""?????" """"???????????????? | | ?????""""""?????"""""""#????"""""????????????????? | | ??????????????????####???????##??????????????????? | | ?????????????????????????????????????????????????? | | ?????????????????????????????????????????????????? | | ?????????????????????????????????????????????????? | | ?????????????????????????????????????????????????? | | | | | | | | | | | | | | | | | | | +----------------------------------------------------+ Best States ------------- Heat Dissipation 42 Energy Generation 10 Energy Capacity 250 Matter Stores 300 Matter Capacity 300 Sight Range 16 Terrain Scan Density 10 Armor Coverage 450 Evasion (%) 50 Targeting Accuracy 10 Item Schematics ----------------- Particle Cannon | -9/Materials | Extracted Robot Schematics ------------------ None Fabricated ------------ Nothing Alien Tech Used ----------------- None Achievements -------------- None Challenges ------------ None Game ------ Seed OpticalSwordKatana Manual? 0 Play Time 00:11:46 Cumulative 186.1 hours Start 2020.09.22 @ 11:12:00 End 2020.09.22 @ 11:22:58 Sessions 1 Manual Loads 0 Difficulty Rogue Special Mode None Game No. 236 Rogue 236 Adventurer 0 Explorer 0 Win Type - Total 10 Types 2/3/0/1/1/3/0/0/0 Lore% 90 Gallery% 90 Achievement% 72 Wizard Run 0 Options --------- ASCII 0 Keyboard 0 Movement Numpad Keybinds 0 Fullscreen 1 Font 24/Smallcaps Map View 76x50 Tactical HUD 1 Map Filters NONE Filters NONE Steam 1 RUN: 7ae76a16-c272-4051-802e-81d4be1fbcb6